fUST/lending_fUST_20260612
["ID","MTS","AMOUNT","RATE_DAILY","PERIOD"]
[424923467,1781275849000,-378.884999,0.00035616,7]
[424923465,1781275849000,-158.262567,0.00035616,7]
[424923464,1781275849000,-151.0,0.00035616,7]
[424923447,1781275849000,-327.52,0.00035616,7]
[424923449,1781275849000,-327.52,0.00035616,7]
[424923479,1781275849000,-369.680832,0.00035616,7]
[424923448,1781275849000,-327.52,0.00035616,7]
[424923426,1781275849000,-151.0,0.00035615,7]
[424923423,1781275849000,-2737.896093,0.00035615,7]
[424923427,1781275849000,-250.191205,0.00035615,7]
[424923418,1781275849000,-1235.873377,0.00035615,7]
[424923425,1781275849000,-151.0,0.00035615,7]
[424923420,1781275849000,-2737.896093,0.00035615,7]
[424923424,1781275849000,-151.0,0.00035615,7]
[424923421,1781275849000,-2737.896093,0.00035615,7]
[424923415,1781275849000,-366.139405,0.00035615,7]
[424923422,1781275849000,-2737.896093,0.00035615,7]
[424923419,1781275849000,-1235.873377,0.00035615,7]
[424923416,1781275849000,-1235.873377,0.00035615,7]
[424923414,1781275849000,-366.139405,0.00035615,7]
[424923408,1781275849000,-151.0,0.00035614,7]
[424923452,1781275849000,-500.0,0.00035616,18]
[424923429,1781275849000,-250.191205,0.00035615,7]
[424923441,1781275849000,-252.774402,0.00035615,7]
[424923417,1781275849000,-1235.873377,0.00035615,7]
[424923430,1781275849000,-2937.020415,0.00035615,7]
[424923439,1781275849000,-252.774402,0.00035615,7]
[424923444,1781275849000,-871.28,0.00035616,18]
[424923443,1781275849000,-252.774402,0.00035615,7]
[424923442,1781275849000,-312.40341,0.00035615,7]
[424923438,1781275849000,-312.40341,0.00035615,7]
[424923435,1781275849000,-312.40341,0.00035615,7]
[424923437,1781275849000,-252.774402,0.00035615,7]
[424923445,1781275849000,-830.86,0.00035616,18]
[424923434,1781275849000,-2937.020415,0.00035615,7]
[424923432,1781275849000,-2937.020415,0.00035615,7]
[424923433,1781275849000,-250.191205,0.00035615,7]
[424923431,1781275849000,-250.191205,0.00035615,7]
[424923440,1781275849000,-312.40341,0.00035615,7]
[424923446,1781275849000,-327.52,0.00035616,7]
[424923428,1781275849000,-2937.020415,0.00035615,7]
[424923436,1781275849000,-151.0,0.00035615,7]
[424923535,1781275850000,-364.9,0.00035616,7]
[424923527,1781275850000,-364.9,0.00035616,7]
[424923517,1781275850000,-151.0,0.00035616,7]
[424923518,1781275850000,-151.0,0.00035616,7]
[424923520,1781275850000,-500.0,0.00035616,18]
[424923521,1781275850000,-3740.95,0.00035616,18]
[424923522,1781275850000,-500.0,0.00035616,18]
[424923523,1781275850000,-810.62,0.00035616,18]
[424923524,1781275850000,-500.0,0.00035616,18]
[424923525,1781275850000,-1205.94,0.00035616,18]
[424923528,1781275850000,-364.9,0.00035616,7]
[424923530,1781275850000,-364.9,0.00035616,7]
[424923526,1781275850000,-500.0,0.00035616,18]
[424923519,1781275850000,-224.296561,0.00035616,7]
[424923533,1781275850000,-364.9,0.00035616,7]
[424923538,1781275850000,-364.9,0.00035616,7]
[424923531,1781275850000,-364.9,0.00035616,7]
[424923539,1781275850000,-151.0,0.00035616,7]
[424923537,1781275850000,-364.9,0.00035616,7]
[424923532,1781275850000,-364.9,0.00035616,7]
[424923536,1781275850000,-364.9,0.00035616,7]
[424923534,1781275850000,-364.9,0.00035616,7]
[424923540,1781275850000,-151.0,0.00035616,7]
[424923542,1781275850000,-151.0,0.00035616,7]
[424923552,1781275850000,-1309.49,0.00035616,18]
[424923553,1781275850000,-367.835971,0.00035616,7]
[424923516,1781275850000,-151.0,0.00035616,7]
[424923545,1781275850000,-151.0,0.00035616,7]
[424923529,1781275850000,-364.9,0.00035616,7]
[424923512,1781275850000,-151.0,0.00035616,7]
[424923500,1781275850000,-151.0,0.00035616,7]
[424923515,1781275850000,-151.0,0.00035616,7]
[424923548,1781275850000,-151.0,0.00035616,7]
[424923486,1781275850000,-500.0,0.00035616,18]
[424923484,1781275850000,-957.85,0.00035616,18]
[424923485,1781275850000,-500.0,0.00035616,18]
[424923488,1781275850000,-306.193536,0.00035616,7]
[424923490,1781275850000,-306.193536,0.00035616,7]
[424923487,1781275850000,-306.193536,0.00035616,7]
[424923489,1781275850000,-306.193536,0.00035616,7]
[424923491,1781275850000,-306.193536,0.00035616,7]
[424923493,1781275850000,-306.193536,0.00035616,7]
[424923502,1781275850000,-151.0,0.00035616,7]
[424923501,1781275850000,-151.0,0.00035616,7]
[424923504,1781275850000,-151.0,0.00035616,7]
[424923499,1781275850000,-151.0,0.00035616,7]
[424923503,1781275850000,-151.0,0.00035616,7]
[424923492,1781275850000,-306.193536,0.00035616,7]
[424923494,1781275850000,-306.193539,0.00035616,7]
[424923497,1781275850000,-151.0,0.00035616,7]
[424923498,1781275850000,-513.33,0.00035616,18]
[424923496,1781275850000,-500.0,0.00035616,18]
[424923495,1781275850000,-644.68,0.00035616,18]
[424923505,1781275850000,-151.0,0.00035616,7]
[424923511,1781275850000,-151.0,0.00035616,7]
[424923509,1781275850000,-153.450673,0.00035616,7]
[424923506,1781275850000,-151.0,0.00035616,7]
[424923514,1781275850000,-151.0,0.00035616,7]
[424923507,1781275850000,-934.42,0.00035616,18]
[424923510,1781275850000,-151.0,0.00035616,7]
[424923513,1781275850000,-151.0,0.00035616,7]
[424923508,1781275850000,-151.0,0.00035616,7]
[424923546,1781275850000,-151.0,0.00035616,7]
[424923549,1781275850000,-288.165739,0.00035616,7]
[424923543,1781275850000,-151.0,0.00035616,7]
[424923581,1781275850000,-172.320986,0.00035616,7]
[424923587,1781275850000,-471.426263,0.00035616,7]
[424923592,1781275850000,-471.426263,0.00035616,7]
[424923590,1781275850000,-471.426263,0.00035616,7]
[424923584,1781275850000,-172.320992,0.00035616,7]
[424923585,1781275850000,-571.53549247,0.00035616,18]
[424923593,1781275850000,-471.426263,0.00035616,7]
[424923591,1781275850000,-471.426263,0.00035616,7]
[424923588,1781275850000,-471.426263,0.00035616,7]
[424923589,1781275850000,-471.426263,0.00035616,7]
[424923586,1781275850000,-471.426263,0.00035616,7]
[424923595,1781275850000,-471.426263,0.00035616,7]
[424923603,1781275850000,-716.84,0.00035616,18]
[424923607,1781275850000,-837.34,0.00035616,18]
[424923604,1781275850000,-500.0,0.00035616,6]
[424923605,1781275850000,-513.41,0.00035616,18]
[424923606,1781275850000,-500.0,0.00035616,18]
[424923596,1781275850000,-471.426263,0.00035616,7]
[424923594,1781275850000,-471.426263,0.00035616,7]
[424923598,1781275850000,-500.0,0.00035616,18]
[424923599,1781275850000,-500.0,0.00035616,18]
[424923601,1781275850000,-188.176669,0.00035616,7]
[424923597,1781275850000,-471.426257,0.00035616,7]
[424923602,1781275850000,-911.41,0.00035616,18]
[424923600,1781275850000,-500.0,0.00035616,18]
[424923608,1781275850000,-500.0,0.00035616,18]
[424923610,1781275850000,-179.01855681,0.00035616,18]
[424923611,1781275850000,-151.0,0.00035616,7]
[424923547,1781275850000,-151.0,0.00035616,7]
[424923583,1781275850000,-172.320986,0.00035616,7]
[424923582,1781275850000,-172.320986,0.00035616,7]
[424923609,1781275850000,-500.0,0.00035616,18]
[424923575,1781275850000,-172.320986,0.00035616,7]
[424923544,1781275850000,-151.0,0.00035616,7]
[424923541,1781275850000,-1769.67,0.00035616,18]
[424923551,1781275850000,-367.835971,0.00035616,7]
[424923550,1781275850000,-883.23,0.00035616,18]
[424923562,1781275850000,-367.835971,0.00035616,7]
[424923556,1781275850000,-367.835971,0.00035616,7]
[424923557,1781275850000,-367.835971,0.00035616,7]
[424923558,1781275850000,-367.835971,0.00035616,7]
[424923573,1781275850000,-172.320986,0.00035616,7]
[424923566,1781275850000,-367.835971,0.00035616,7]
[424923567,1781275850000,-179.315791,0.00035616,7]
[424923563,1781275850000,-367.835971,0.00035616,7]
[424923554,1781275850000,-367.835971,0.00035616,7]
[424923564,1781275850000,-300.09238969,0.00035616,18]
[424923555,1781275850000,-367.835971,0.00035616,7]
[424923561,1781275850000,-367.835971,0.00035616,7]
[424923559,1781275850000,-367.835971,0.00035616,7]
[424923578,1781275850000,-620.83,0.00035616,18]
[424923570,1781275850000,-367.835979,0.00035616,7]
[424923574,1781275850000,-172.320986,0.00035616,7]
[424923577,1781275850000,-172.320986,0.00035616,7]
[424923572,1781275850000,-172.320986,0.00035616,7]
[424923576,1781275850000,-172.320986,0.00035616,7]
[424923568,1781275850000,-367.835971,0.00035616,7]
[424923580,1781275850000,-172.320986,0.00035616,7]
[424923579,1781275850000,-172.320986,0.00035616,7]
[424923569,1781275850000,-367.835971,0.00035616,7]
[424923560,1781275850000,-367.835971,0.00035616,7]
[424923565,1781275850000,-151.0,0.00035616,7]
[424923571,1781275850000,-500.0,0.00035616,18]
[424923653,1781275851000,-1053.32,0.00035616,18]
[424923651,1781275851000,-500.0,0.00035616,18]
[424923654,1781275851000,-500.0,0.00035616,18]
[424923650,1781275851000,-2257.11,0.00035616,18]
[424923656,1781275851000,-312.40341,0.00035616,7]
[424923658,1781275851000,-224.825702,0.00035616,7]
[424923649,1781275851000,-2937.02040686,0.00035616,7]
[424923659,1781275851000,-312.40341,0.00035616,7]
[424923648,1781275851000,-250.19121,0.00035616,7]
[424923642,1781275851000,-2937.020415,0.00035616,7]
[424923641,1781275851000,-250.191205,0.00035616,7]
[424923647,1781275851000,-2937.020415,0.00035616,7]
[424923657,1781275851000,-252.774402,0.00035616,7]
[424923668,1781275851000,-500.0,0.00035616,18]
[424923652,1781275851000,-500.0,0.00035616,18]
[424923660,1781275851000,-252.774402,0.00035616,7]
[424923672,1781275851000,-6581.33,0.00035616,18]
[424923671,1781275851000,-500.0,0.00035616,18]
[424923661,1781275851000,-312.40341,0.00035616,7]
[424923665,1781275851000,-2033.77,0.00035616,18]
[424923663,1781275851000,-252.774402,0.00035616,7]
[424923667,1781275851000,-252.774405,0.00035616,7]
[424923662,1781275851000,-1279.58,0.00035616,18]
[424923666,1781275851000,-312.4034,0.00035616,7]
[424923664,1781275851000,-500.0,0.00035616,18]
[424923670,1781275851000,-784.54,0.00035616,18]
[424923669,1781275851000,-500.0,0.00035616,18]
[424923643,1781275851000,-250.191205,0.00035616,7]
[424923655,1781275851000,-513.52,0.00035616,18]
[424923646,1781275851000,-250.191205,0.00035616,7]
[424923628,1781275851000,-500.0,0.00035616,18]
[424923645,1781275851000,-500.0,0.00035616,18]
[424923612,1781275851000,-151.0,0.00035616,7]
[424923614,1781275851000,-151.0,0.00035616,7]
[424923620,1781275851000,-366.139405,0.00035616,7]
[424923615,1781275851000,-151.0,0.00035616,7]
[424923613,1781275851000,-151.0,0.00035616,7]
[424923619,1781275851000,-366.139405,0.00035616,7]
[424923617,1781275851000,-2844.87,0.00035616,18]
[424923618,1781275851000,-519.73,0.00035616,18]
[424923616,1781275851000,-151.0,0.00035616,7]
[424923622,1781275851000,-366.139399,0.00035616,7]
[424923632,1781275851000,-1235.873374,0.00035616,7]
[424923621,1781275851000,-366.139405,0.00035616,7]
[424923625,1781275851000,-782.33,0.00035616,18]
[424923644,1781275851000,-2937.020415,0.00035616,7]
[424923633,1781275851000,-2737.896093,0.00035616,7]
[424923623,1781275851000,-500.0,0.00035616,18]
[424923629,1781275851000,-1235.873377,0.00035616,7]
[424923627,1781275851000,-1235.873377,0.00035616,7]
[424923626,1781275851000,-500.0,0.00035616,18]
[424923631,1781275851000,-545.39,0.00035616,18]
[424923630,1781275851000,-1235.873377,0.00035616,7]
[424923674,1781275851000,-1224.6,0.00035616,18]
[424923636,1781275851000,-2737.896085,0.00035616,7]
[424923637,1781275851000,-151.0,0.00035616,7]
[424923638,1781275851000,-151.0,0.00035616,7]
[424923639,1781275851000,-500.0,0.00035616,18]
[424923635,1781275851000,-2737.896093,0.00035616,7]
[424923640,1781275851000,-217.184808,0.00035616,7]
[424923624,1781275851000,-500.0,0.00035616,18]
[424923685,1781275851000,-2446.7,0.00035616,18]
[424923634,1781275851000,-2737.896093,0.00035616,7]
[424923684,1781275851000,-500.0,0.00035616,18]
[424923705,1781275851000,-500.0,0.00035616,18]
[424923708,1781275851000,-2091.82,0.00035616,18]
[424923706,1781275851000,-505.33699612,0.00035616,18]
[424923713,1781275851000,-1455.11,0.00035616,18]
[424923714,1781275851000,-4917.08,0.00035616,18]
[424923715,1781275851000,-500.0,0.00035616,18]
[424923716,1781275851000,-500.0,0.00035616,2]
[424923717,1781275851000,-500.0,0.00035616,18]
[424923721,1781275851000,-500.0,0.00035616,18]
[424923722,1781275851000,-500.0,0.00035616,18]
[424923720,1781275851000,-2715.45,0.00035616,18]
[424923718,1781275851000,-500.0,0.00035616,18]
[424923723,1781275851000,-4662.48,0.00035616,18]
[424923703,1781275851000,-505.0,0.00035616,18]
[424923734,1781275851000,-658.074765,0.00035616,7]
[424923729,1781275851000,-825.73,0.00035616,18]
[424923731,1781275851000,-658.074765,0.00035616,7]
[424923726,1781275851000,-658.074765,0.00035616,7]
[424923725,1781275851000,-500.0,0.00035616,18]
[424923728,1781275851000,-658.074765,0.00035616,7]
[424923727,1781275851000,-658.074765,0.00035616,7]
[424923732,1781275851000,-658.074765,0.00035616,7]
[424923730,1781275851000,-500.0,0.00035616,18]
[424923733,1781275851000,-1122.57,0.00035616,18]
[424923736,1781275851000,-500.0,0.00035616,18]
[424923735,1781275851000,-658.074765,0.00035616,7]
[424923737,1781275851000,-658.074765,0.00035616,7]
[424923673,1781275851000,-612.88,0.00035616,18]
[424923724,1781275851000,-500.0,0.00035616,18]
[424923704,1781275851000,-3930.65,0.00035616,18]
[424923719,1781275851000,-1290.77,0.00035616,18]
[424923709,1781275851000,-500.0,0.00035616,18]
[424923707,1781275851000,-500.0,0.00035616,18]
[424923677,1781275851000,-3458.95,0.00035616,18]
[424923682,1781275851000,-1145.8,0.00035616,18]
[424923675,1781275851000,-1662.11,0.00035616,18]
[424923680,1781275851000,-500.0,0.00035616,18]
[424923676,1781275851000,-500.0,0.00035616,18]
[424923679,1781275851000,-610.29,0.00035616,18]
[424923681,1781275851000,-500.0,0.00035616,18]
[424923678,1781275851000,-2753.05,0.00035616,18]
[424923686,1781275851000,-500.0,0.00035616,18]
[424923692,1781275851000,-712.7,0.00035616,18]
[424923690,1781275851000,-772.63,0.00035616,18]
[424923688,1781275851000,-1990.22,0.00035616,18]
[424923689,1781275851000,-500.0,0.00035616,18]
[424923691,1781275851000,-1404.22,0.00035616,18]
[424923683,1781275851000,-500.0,0.00035616,18]
[424923710,1781275851000,-4495.62,0.00035616,18]
[424923696,1781275851000,-500.0,0.00035616,18]
[424923693,1781275851000,-500.0,0.00035616,18]
[424923687,1781275851000,-23042.44,0.00035616,18]
[424923697,1781275851000,-1466.4,0.00035616,18]
[424923698,1781275851000,-2816.67,0.00035616,18]
[424923694,1781275851000,-500.0,0.00035616,18]
[424923711,1781275851000,-500.0,0.00035616,18]
[424923712,1781275851000,-258.73509557,0.00035616,18]
[424923695,1781275851000,-500.0,0.00035616,18]
[424923701,1781275851000,-548.92,0.00035616,2]
[424923700,1781275851000,-1330.45,0.00035616,18]
[424923699,1781275851000,-2193.16,0.00035616,11]
[424923702,1781275851000,-500.0,0.00035616,18]
[424923779,1781275852000,-151.0,0.0003589,7]
[424923782,1781275852000,-503.89,0.0003589,18]
[424923774,1781275852000,-500.0,0.0003589,18]
[424923778,1781275852000,-151.0,0.0003589,7]
[424923781,1781275852000,-151.0,0.0003589,7]
[424923784,1781275852000,-378.884999,0.0003589,7]
[424923762,1781275852000,-830.86,0.0003589,18]
[424923786,1781275852000,-378.884999,0.0003589,7]
[424923775,1781275852000,-500.0,0.0003589,18]
[424923777,1781275852000,-151.0,0.0003589,7]
[424923770,1781275852000,-327.52,0.0003589,7]
[424923766,1781275852000,-327.52,0.0003589,7]
[424923785,1781275852000,-378.884999,0.0003589,7]
[424923776,1781275852000,-151.0,0.0003589,7]
[424923783,1781275852000,-500.0,0.0003589,18]
[424923797,1781275852000,-500.0,0.0003589,18]
[424923787,1781275852000,-378.884999,0.0003589,7]
[424923798,1781275852000,-513.33,0.0003589,18]
[424923799,1781275852000,-151.0,0.0003589,7]
[424923789,1781275852000,-369.680832,0.0003589,7]
[424923788,1781275852000,-369.680832,0.0003589,7]
[424923791,1781275852000,-369.680835,0.0003589,7]
[424923801,1781275852000,-934.42,0.0003589,18]
[424923800,1781275852000,-151.0,0.0003589,7]
[424923792,1781275852000,-500.0,0.0003589,18]
[424923795,1781275852000,-500.0,0.0003589,18]
[424923794,1781275852000,-500.0,0.0003589,18]
[424923793,1781275852000,-957.85,0.0003589,18]
[424923790,1781275852000,-369.680832,0.0003589,7]
[424923780,1781275852000,-151.0,0.0003589,7]
[424923767,1781275852000,-327.52,0.0003589,7]
[424923746,1781275852000,-300.0,0.00035616,120]
[424923765,1781275852000,-327.52,0.0003589,7]
[424923796,1781275852000,-644.68,0.0003589,18]
[424923748,1781275852000,-300.0,0.00035616,120]
[424923747,1781275852000,-300.0,0.00035616,120]
[424923742,1781275852000,-300.0,0.00035616,120]
[424923738,1781275852000,-658.074765,0.00035616,7]
[424923741,1781275852000,-300.0,0.00035616,120]
[424923740,1781275852000,-300.0,0.00035616,120]
[424923739,1781275852000,-658.074765,0.00035616,7]
[424923743,1781275852000,-300.0,0.00035616,120]
[424923745,1781275852000,-300.0,0.00035616,120]
[424923744,1781275852000,-300.0,0.00035616,120]
[424923749,1781275852000,-300.0,0.00035616,120]
[424923751,1781275852000,-300.0,0.00035616,120]
[424923752,1781275852000,-300.0,0.00035616,120]
[424923773,1781275852000,-151.0,0.0003589,7]
[424923755,1781275852000,-300.0,0.00035616,120]
[424923758,1781275852000,-500.0,0.00035657,5]
[424923761,1781275852000,-871.28,0.0003589,18]
[424923750,1781275852000,-300.0,0.00035616,120]
[424923760,1781275852000,-578.55263091,0.00035823,2]
[424923754,1781275852000,-300.0,0.00035616,120]
[424923753,1781275852000,-300.0,0.00035616,120]
[424923756,1781275852000,-220.884086,0.00035616,120]
[424923759,1781275852000,-1814.23415644,0.00035676,2]
[424923763,1781275852000,-327.52,0.0003589,7]
[424923771,1781275852000,-151.0,0.0003589,7]
[424923764,1781275852000,-327.52,0.0003589,7]
[424923772,1781275852000,-500.0,0.0003589,18]
[424923769,1781275852000,-327.52,0.0003589,7]
[424923768,1781275852000,-327.52,0.0003589,7]
[424923757,1781275852000,-237.26753654,0.00035616,2]
[424923802,1781275852000,-151.0,0.0003589,7]
[424923804,1781275852000,-151.0,0.0003589,7]
[424923806,1781275852000,-3740.95,0.0003589,18]
[424923840,1781275852000,-500.0,0.0003589,18]
[424923838,1781275852000,-500.0,0.0003589,18]
[424923839,1781275852000,-545.39,0.0003589,18]
[424923842,1781275852000,-2257.11,0.0003589,18]
[424923843,1781275852000,-500.0,0.0003589,18]
[424923853,1781275852000,-784.54,0.0003589,18]
[424923845,1781275852000,-1053.32,0.0003589,18]
[424923847,1781275852000,-513.52,0.0003589,18]
[424923846,1781275852000,-500.0,0.0003589,18]
[424923848,1781275852000,-1279.58,0.0003589,18]
[424923844,1781275852000,-500.0,0.0003589,18]
[424923852,1781275852000,-500.0,0.0003589,18]
[424923849,1781275852000,-2033.77,0.0003589,18]
[424923851,1781275852000,-500.0,0.0003589,18]
[424923850,1781275852000,-500.0,0.0003589,18]
[424923855,1781275852000,-6581.33,0.0003589,18]
[424923854,1781275852000,-500.0,0.0003589,18]
[424923858,1781275852000,-1662.11,0.0003589,18]
[424923856,1781275852000,-612.88,0.0003589,18]
[424923857,1781275852000,-1224.6,0.0003589,18]
[424923866,1781275852000,-500.0,0.0003589,18]
[424923860,1781275852000,-3458.95,0.0003589,18]
[424923859,1781275852000,-500.380144,0.0003589,18]
[424923861,1781275852000,-2753.05,0.0003589,18]
[424923863,1781275852000,-500.0,0.0003589,18]
[424923862,1781275852000,-610.29,0.0003589,18]
[424923867,1781275852000,-500.0,0.0003589,18]
[424923865,1781275852000,-1145.8,0.0003589,18]
[424923868,1781275852000,-2446.7,0.0003589,18]
[424923837,1781275852000,-500.0,0.0003589,18]
[424923841,1781275852000,-500.0,0.0003589,18]
[424923864,1781275852000,-500.0,0.0003589,18]
[424923836,1781275852000,-782.33,0.0003589,18]
[424923805,1781275852000,-500.0,0.0003589,18]
[424923803,1781275852000,-151.0,0.0003589,7]
[424923807,1781275852000,-500.0,0.0003589,18]
[424923810,1781275852000,-1205.94,0.0003589,18]
[424923808,1781275852000,-810.62,0.0003589,18]
[424923814,1781275852000,-364.9,0.0003589,7]
[424923811,1781275852000,-500.0,0.0003589,18]
[424923809,1781275852000,-500.0,0.0003589,18]
[424923812,1781275852000,-364.9,0.0003589,7]
[424923816,1781275852000,-1769.67,0.0003589,18]
[424923826,1781275852000,-500.0,0.0003589,6]
[424923817,1781275852000,-883.23,0.0003589,18]
[424923818,1781275852000,-1309.49,0.0003589,18]
[424923815,1781275852000,-364.9,0.0003589,7]
[424923813,1781275852000,-364.9,0.0003589,7]
[424923819,1781275852000,-500.0,0.0003589,18]
[424923829,1781275852000,-837.34,0.0003589,18]
[424923827,1781275852000,-513.41,0.0003589,18]
[424923835,1781275852000,-500.0,0.0003589,18]
[424923832,1781275852000,-2844.87,0.0003589,18]
[424923833,1781275852000,-519.73,0.0003589,18]
[424923831,1781275852000,-500.0,0.0003589,18]
[424923830,1781275852000,-500.0,0.0003589,18]
[424923834,1781275852000,-500.0,0.0003589,18]
[424923825,1781275852000,-716.84,0.0003589,18]
[424923823,1781275852000,-500.0,0.0003589,18]
[424923824,1781275852000,-911.41,0.0003589,18]
[424923820,1781275852000,-620.83,0.0003589,18]
[424923822,1781275852000,-500.0,0.0003589,18]
[424923821,1781275852000,-500.0,0.0003589,18]
[424923828,1781275852000,-500.0,0.0003589,18]
[424923915,1781275853000,-327.52,0.00036164,7]
[424923911,1781275853000,-1029.38427116,0.00036046,6]
[424923912,1781275853000,-2304.07011956,0.00036046,6]
[424923910,1781275853000,-500.0,0.0003589,18]
[424923909,1781275853000,-1122.57,0.0003589,18]
[424923902,1781275853000,-500.0,0.0003589,18]
[424923900,1781275853000,-1290.77,0.0003589,18]
[424923899,1781275853000,-500.0,0.0003589,18]
[424923901,1781275853000,-2715.45,0.0003589,18]
[424923903,1781275853000,-500.0,0.0003589,18]
[424923913,1781275853000,-871.28,0.00036164,18]
[424923908,1781275853000,-596.96094331,0.0003589,18]
[424923898,1781275853000,-500.0,0.0003589,18]
[424923930,1781275853000,-500.0,0.00036164,18]
[424923916,1781275853000,-327.52,0.00036164,7]
[424923918,1781275853000,-327.52,0.00036164,7]
[424923917,1781275853000,-327.52,0.00036164,7]
[424923923,1781275853000,-164.52888776,0.00036164,18]
[424923919,1781275853000,-327.52,0.00036164,7]
[424923927,1781275853000,-151.0,0.00036164,7]
[424923921,1781275853000,-327.52,0.00036164,7]
[424923924,1781275853000,-527.038302,0.00036164,18]
[424923922,1781275853000,-327.52,0.00036164,7]
[424923920,1781275853000,-327.52,0.00036164,7]
[424923925,1781275853000,-500.0,0.00036164,18]
[424923926,1781275853000,-233.531456,0.00036164,7]
[424923928,1781275853000,-151.0,0.00036164,7]
[424923897,1781275853000,-500.0,0.0003589,2]
[424923914,1781275853000,-830.86,0.00036164,18]
[424923907,1781275853000,-825.73,0.0003589,18]
[424923887,1781275853000,-3930.65,0.0003589,18]
[424923895,1781275853000,-4917.08,0.0003589,18]
[424923940,1781275853000,-3740.95,0.00036164,18]
[424923879,1781275853000,-500.0,0.0003589,18]
[424923880,1781275853000,-1466.4,0.0003589,18]
[424923869,1781275853000,-500.0,0.0003589,18]
[424923870,1781275853000,-23042.44,0.0003589,18]
[424923871,1781275853000,-1990.22,0.0003589,18]
[424923873,1781275853000,-772.63,0.0003589,18]
[424923878,1781275853000,-500.0,0.0003589,18]
[424923876,1781275853000,-500.0,0.0003589,18]
[424923874,1781275853000,-1404.22,0.0003589,18]
[424923877,1781275853000,-500.0,0.0003589,18]
[424923875,1781275853000,-712.7,0.0003589,18]
[424923881,1781275853000,-2816.67,0.0003589,18]
[424923906,1781275853000,-500.0,0.0003589,18]
[424923883,1781275853000,-1330.45,0.0003589,18]
[424923884,1781275853000,-548.92,0.0003589,2]
[424923891,1781275853000,-368.54768512,0.0003589,18]
[424923886,1781275853000,-505.0,0.0003589,18]
[424923894,1781275853000,-1455.11,0.0003589,18]
[424923889,1781275853000,-500.0,0.0003589,18]
[424923892,1781275853000,-4495.62,0.0003589,18]
[424923890,1781275853000,-2091.82,0.0003589,18]
[424923888,1781275853000,-500.0,0.0003589,18]
[424923882,1781275853000,-2193.16,0.0003589,11]
[424923893,1781275853000,-500.0,0.0003589,18]
[424923896,1781275853000,-500.0,0.0003589,18]
[424923904,1781275853000,-4662.48,0.0003589,18]
[424923905,1781275853000,-500.0,0.0003589,18]
[424923885,1781275853000,-500.0,0.0003589,18]
[424923942,1781275853000,-810.62,0.00036164,18]
[424923872,1781275853000,-500.0,0.0003589,18]
[424923941,1781275853000,-500.0,0.00036164,18]
[424923960,1781275853000,-364.22290267,0.00036164,18]
[424923965,1781275853000,-500.0,0.00036164,18]
[424923969,1781275853000,-545.39,0.00036164,18]
[424923973,1781275853000,-500.0,0.00036164,18]
[424923971,1781275853000,-500.0,0.00036164,18]
[424923975,1781275853000,-1053.32,0.00036164,18]
[424923977,1781275853000,-513.52,0.00036164,18]
[424923974,1781275853000,-500.0,0.00036164,18]
[424923970,1781275853000,-500.0,0.00036164,18]